Cogmind - Beta 16.1 @@@ ROGUE MODE // 2026.03.09 @ 11:00:46 Player: Ragnakor Result: Destroyed by D-53 Grenadier with Mini Grenade Launcher Performance ------------- Evolutions (0) 0 Regions Visited (2) 400 Robots Destroyed (11) 55 Value Destroyed (165) 165 Prototype IDs (0) 0 Alien Tech Used (0) 0 Bonus (0) 0 TOTAL SCORE: 620 Bonus ------- None Cogmind --------- Core Integrity 0/250 Matter 239/300 Energy 100/100 System Corruption 6% Temperature Cool (0) Movement Walking (120) Location -10/Mines Parts ------- > --- POWER (1) -------- (None) > --- PROPULSION (2) --- Aluminum Leg > --- UTILITY (2) ------ Small Storage Unit Visual Processing Unit > --- WEAPON (2) ------- Light Assault Rifle > --- INVENTORY (8) ---- Seismic Detector ECM Suite Peak State ------------ > --- POWER ------------ Light Ion Engine > --- PROPULSION ------- Aluminum Leg Aluminum Leg > --- UTILITY ---------- Small Storage Unit Improved Terrain Scanner > --- WEAPON ----------- Assault Rifle Light Assault Rifle > --- INVENTORY -------- Light Ion Engine Small Laser [Rating: 9] Favorites ----------- Power Light Ion Engine Engine Light Ion Engine Propulsion Aluminum Leg Leg Aluminum Leg Utility Small Storage Unit Device Improved Terrain Scanner Storage Small Storage Unit Processor Visual Processing Unit Weapon Assault Rifle Ballistic Gun Assault Rifle Launcher Grenade Launcher Build | -11 -10 -10 ------- Run | Yrd Mat Min Slots Evolved . | . . . Power . | . . . Propulsion . | . . . Utility . | . . . Weapon . | . . . Parts Attached 12 | 7 3 2 Power 3 | 1 2 . Engine 3 | 1 2 . Core . | . . . Reactor . | . . . Propulsion 3 | 2 . 1 Treads . | . . . Leg 3 | 2 . 1 Wheel . | . . . Hover . | . . . Flight . | . . . Utility 3 | 2 . 1 Device 1 | 1 . . Storage 1 | 1 . . Processor 1 | . . 1 Hackware . | . . . Protection . | . . . Artifact . | . . . Weapon 3 | 2 1 . Energy Gun . | . . . Energy Cannon . | . . . Ballistic Gun 2 | 2 . . Ballistic Cannon . | . . . Launcher 1 | . 1 . Special Weapon . | . . . Impact Weapon . | . . . Slashing Weapon . | . . . Piercing Weapon . | . . . Special Melee Weapon . | . . . Unidentified Prototypes . | . . . Parts Lost 7 | . . 7 Power 2 | . . 2 Propulsion 2 | . . 2 Utility 1 | . . 1 Weapon 2 | . . 2 Highest Loss Streak 7 | . . 7 To Critical Strikes . | . . . Average Backups 5 | 1 6 5 Power 1 | . 1 . Propulsion . | . . . Utility 2 | . 2 2 Weapon 1 | . 1 . Tool/Special . | . . . Unused Backups 4 | . 2 2 Power . | . . . Propulsion 1 | . 1 . Utility 2 | . . 2 Weapon 1 | . 1 . Tool/Special . | . . . Average Slot Usage (%) 98 | . 100 91 Engine 13 | . 14 12 Leg 27 | . 28 26 Device 13 | . 14 10 Storage 14 | . 14 14 Ballistic Gun 20 | . 20 19 Launcher 6 | . 7 3 Peak Build Rating 9 | 9 9 9 Average Rating 8 | 6 8 7 On Entrance 6 | . 9 9 Avg Prop Armor Cover (%) . | . . . Naked Turns . | . . . Heaviest Build 16 | 12 16 14 Greatest Support 20 | 20 20 20 Greatest Overweight (x) . | . . . Average Overweight (x) . | . . . Largest Inventory Capacity 8 | 8 8 8 Average Capacity 7 | 7 8 8 Most Carried 8 | 3 8 7 Average Carried 5 | 1 6 5 Final Capacity 8 | 8 8 8 Final Carried 6 | 3 6 2 Class Distribution -------------------- 100% | Mutant Dominant Class ---------------- Mutant | -10/Materials Mutant | -10/Mines Resources | -11 -10 -10 ----------- Run | Yrd Mat Min Matter Collected 378 | 290 46 42 Remotely . | . . . Salvage Created 348 | 123 147 78 Parts 22 | 6 14 2 Haulers Intercepted 2 | . 2 . Recyclers Shooed . | . . . Parts Field Recycled . | . . . Retrieved Matter . | . . . Parts Self-Destructed . | . . . Prevented . | . . . Parts Restored . | . . . Kills | -11 -10 -10 ------- Run | Yrd Mat Min Combat Hostiles Destroyed 9 | . 3 6 Guns 1 | . . 1 AOE 8 | . 3 5 Classes Destroyed 8 | 2 4 2 Worker 1 | . 1 . Tunneler 1 | 1 . . Hauler 2 | . 2 . Recycler 1 | 1 . . Watcher 1 | . 1 . Swarmer 3 | . 3 . Grunt 2 | . . 2 Assembled 4 | . . 4 Best Kill Streak 4 | 1 4 4 Combat Bots Only 4 | . 3 4 Max Kills in Single Turn 2 | 1 2 2 Gunslinging . | . . . Exploded 2 | . 2 2 Melee . | . . . Uniques/NPCs Destroyed . | . . . Combat | -11 -10 -10 -------- Run | Yrd Mat Min Hostile Shots Fired 48 | . 14 34 Missed 13 | . 5 8 Hits 35 | . 9 26 Melee 2 | . . 2 Projectile 33 | . 9 24 AOE 12 | . . 12 Damage Taken 815 | . 71 744 Core 250 | . 19 231 Absorbed by Shields . | . . . Core Remaining (%) 100 | 100 . . Volleys Fired 24 | 5 12 7 Largest 2 | 2 2 2 Hottest 50 | 40 50 50 Shots Fired 45 | 10 24 11 Gun 38 | 10 21 7 Cannon . | . . . Launcher 7 | . 3 4 Special . | . . . Kinetic 38 | 10 21 7 Thermal . | . . . Explosive 7 | . 3 4 Electromagnetic . | . . . Robot Hit Streak 5 | 5 4 4 Robot Miss Streak 5 | 1 5 1 Penetration Max . | . . . Secondary Targets . | . . . Shots Hit Robots 24 | 7 11 6 Core Hits 21 | 3 9 9 Critical Kills . | . . . Critical Parts Destroyed . | . . . Critical Strikes . | . . . Melee Attacks . | . . . Impact . | . . . Slashing . | . . . Piercing . | . . . Sneak Attacks . | . . . Combat Hostiles . | . . . Follow-up Attacks . | . . . Damage Inflicted 752 | 72 283 397 Guns 207 | 72 98 37 Cannons . | . . . Explosions 545 | . 185 360 Melee . | . . . Ramming . | . . . Kinetic 207 | 72 98 37 Thermal 68 | . . 68 Explosive 477 | . 185 292 Electromagnetic . | . . . Impact . | . . . Slashing . | . . . Piercing . | . . . Highest Corruption 6 | . . 6 Average Corruption 6 | . . 6 Corruption Purged . | . . . Corruption Blocked . | . . . Effects 1 | . . 1 Matter Fused 1 | . . 1 Overload Shots . | . . . Overflow Damage 13 | . . 13 Projectiles . | . . . Explosions 13 | . . 13 Melee . | . . . Knockbacks . | . . . Impact . | . . . Kinetic . | . . . Secondary . | . . . Self-Inflicted Damage 62 | . . 62 Shots 2 | . . 2 Rammed . | . . . Targets Rammed . | . . . Kicked . | . . . Crushed . | . . . Highest Temperature 11 | . . 11 Average Temperature 3 | . . 3 Received Heat Transfer 70 | . . 70 Siege Activations . | . . . Martial Activations . | . . . Shielding Activations . | . . . Robots Disrupted . | . . . Combat Hostiles . | . . . Robots Corrupted . | . . . Combat Hostiles . | . . . Parts Fried . | . . . Impact Corruptions . | . . . Robots Melted . | . . . Combat Hostiles . | . . . Parts Melted . | . . . Heat Transferred 100 | . . 100 Parts Sabotaged . | . . . Parts Stolen . | . . . Parts Stripped . | . . . Power Chain Reactions . | . . . Alert | -11 -10 -10 ------- Run | Yrd Mat Min Maximum Alert Level . | . . . Low Security (%) 100 | 100 100 100 Level 1 . | . . . Level 2 . | . . . Level 3 . | . . . Level 4 . | . . . Level 5 . | . . . High Security . | . . . Max Security . | . . . Peak Influence 102 | 5 102 92 Initial 3 | . . 3 Average 29 | 1 28 55 Influence Increases 264 | 10 147 107 Destroy 0b10 Robot/C 100 | . 60 40 Destroy 0b10 Robot/NC 30 | 10 20 . Destroy Leader 26 | . 16 10 Successful Hack 14 | . 14 . Disable Machine 30 | . 15 15 Destroy Structure 64 | . 22 42 Influence Decreases 264 | 10 139 115 Entered New Map 5 | . . 5 Time Decay 199 | 10 139 50 Lost Part 60 | . . 60 Squads Dispatched . | . . . Investigation . | . . . Extermination . | . . . Reinforcement . | . . . Assault . | . . . Garrison . | . . . Intercept . | . . . Searches Triggered . | . . . Construction Impeded . | . . . Haulers Reinforced . | . . . Active Scanning Responses . | . . . Cargo Convoy Interrupts . | . . . Stealth | -11 -10 -10 --------- Run | Yrd Mat Min Distress Signals . | . . . Communications Jammed . | . . . Distress Signals . | . . . Times Spotted 23 | . 5 18 Peak Tracking Total 16 | . 2 16 Tactical Retreats 1 | . . 1 Traps | -11 -10 -10 ------- Run | Yrd Mat Min Traps Triggered . | . . . Indirectly . | . . . Trap Hack Attempts . | . . . Triggered . | . . . Disarmed . | . . . Reprogrammed . | . . . Reused . | . . . Traps Extracted . | . . . Installed . | . . . Triggered . | . . . Machines | -11 -10 -10 ---------- Run | Yrd Mat Min Machines Disabled 2 | . 1 1 Max in Single Turn 1 | . 1 1 Machines Repaired . | . . . Machines Dismantled . | . . . Machines Sabotaged . | . . . Overloaded Fab Kills . | . . . Hacking | -11 -10 -10 --------- Run | Yrd Mat Min Machines Accessed 4 | . 4 . Terminals 2 | . 2 . Fabricators . | . . . Repair Stations 1 | . 1 . Recycling Units 1 | . 1 . Scanalyzers . | . . . Garrison Access . | . . . Total Hacks 17 | . 17 . Successful 7 | . 7 . Failed 10 | . 10 . Catastrophic 2 | . 2 . Database Lockouts . | . . . Manual . | . . . Terminals 7 | . 7 . Fabricators . | . . . Repair Stations 4 | . 4 . Recycling Units 6 | . 6 . Scanalyzers . | . . . Garrison Access . | . . . Terminal Hacks 3 | . 3 . Emergency Access Points 1 | . 1 . Terminal Index 1 | . 1 . Hauler Manifests 1 | . 1 . Fabricator Hacks . | . . . Repair Station Hacks 1 | . 1 . Scan Component 1 | . 1 . Recycling Unit Hacks 3 | . 3 . Process 1 | . 1 . Report Inventory 1 | . 1 . Retrieve Matter 1 | . 1 . Scanalyzer . | . . . Garrison Access Hacks . | . . . Unauthorized Hacks . | . . . Terminals . | . . . Fabricators . | . . . Repair Stations . | . . . Recycling Units . | . . . Scanalyzers . | . . . Garrison Access . | . . . Data Cores Recovered . | . . . Used . | . . . Hacking Detections 4 | . 4 . Full Trace Events 1 | . 1 . Feedback Events . | . . . Feedback Blocked . | . . . Robot Schematics Acquired . | . . . Robots Built . | . . . Authchips . | . . . Time . | . . . Total Robot Build Rating . | . . . Part Schematics Acquired . | . . . Parts Built . | . . . Authchips . | . . . Time . | . . . Total Part Build Rating . | . . . Part Studies Acquired . | . . . Parts Repaired . | . . . Time . | . . . Parts Recycled . | . . . Recycled Matter 144 | . 144 . Retrieved Matter 144 | . 144 . Retrieved Components . | . . . Parts Scanalyzed . | . . . Part Schematics Acquired . | . . . Parts Damaged . | . . . Bothacking | -11 -10 -10 ------------ Run | Yrd Mat Min Used RIF Installer . | . . . Robots Hacked . | . . . Non-combat . | . . . Combat . | . . . Robot Hacks Applied . | . . . Relay Couplers Released . | . . . Fabnet Peak Effective % . | . . . Robots Rewired . | . . . Allies Hacked . | . . . Hacks Repelled . | . . . Allies | -11 -10 -10 -------- Run | Yrd Mat Min Total Allies . | . . . Largest Group . | . . . Highest-Rated Group . | . . . Highest-Rated Ally . | . . . Total Orders . | . . . Ally Attacks . | . . . Total Damage . | . . . Kills . | . . . Allies Corrupted . | . . . Allies Melted . | . . . Intel | -11 -10 -10 ------- Run | Yrd Mat Min Active Infowar (turns) 554 | 46 402 106 Optics 25 | . . 25 Terrain 529 | 46 402 81 Robot Analysis Total . | . . . Derelict Logs Recovered . | . . . Drone Launches . | . . . Drone Recoveries . | . . . Exploration | -11 -10 -10 ------------- Run | Yrd Mat Min Turns Passed 614 | 98 402 114 Spaces Moved 426 | 62 293 71 Core 5 | 5 . . Treads . | . . . Legs 421 | 57 293 71 Wheels . | . . . Hover . | . . . Flight . | . . . Fastest Speed 50 | 50 120 120 Average Speed 119 | 114 120 120 Slowest Speed 120 | 120 120 120 Overloaded Moves . | . . . Propulsion Burnouts . | . . . Robots Hopped . | . . . Potential Cave-ins . | . . . Cave-ins Triggered . | . . . Exploration Rate (%) 23 | 4 49 18 Regions Visited 2 Branch Regions 1 Pre-discovered Areas . | . . . Known Exits Taken . | . . . Unknown Exits Taken 2 | 1 1 . Scrap Searched . | . . . Spaces Dug . | . . . Terrain Destroyed 69 | . 19 50 Melee . | . . . Projectile . | . . . AOE 69 | . 19 50 Terrain Rammed . | . . . Walls Destroyed . | . . . Machines Disabled . | . . . Actions | -11 -10 -10 --------- Run | Yrd Mat Min Total 489 | 76 323 90 Wait 7 | . 5 2 Move 424 | 61 292 71 Hop . | . . . Pick Up 10 | 3 6 1 Fast Attach 7 | 7 . . Attach 8 | . 2 6 Detach 3 | . 1 2 Swap 1 | . 1 . Drop 5 | . 4 1 Fire 24 | 5 12 7 Melee . | . . . Ram . | . . . Kick . | . . . Crush . | . . . Escape Stasis . | . . . Rewire . | . . . Trap . | . . . Miscellaneous . | . . . Route ------- -11/Scrapyard -10/Materials (discovered 3 exits: [*Mat] / [*Min x2]) -10/Mines History --------- Turn | Location | Event 5 | -11/Scrapyard | Discovered new exit (range 14) 99 | -11/Scrapyard | Entered Materials 230 | -10/Materials | Discovered new exit (range 11) 316 | -10/Materials | Build established: Mutant 330 | -10/Materials | Discovered new exit (range 16) 445 | -10/Materials | Discovered new exit (range 14) 501 | -10/Materials | Entered Mines 544 | -10/Mines | Assembled infested the area 549 | -10/Mines | Assisted by a Guerilla fighting off Assembled 597 | -10/Mines | Core integrity fell below 50% 614 | -10/Mines | Core integrity fell below 20% 615 | -10/Mines | Destroyed by D-53 Grenadier with Mini Grenade Launcher Last Messages --------------- effect. 00586_ K-01 Serf destroyed. 00587_ C-45 Heavy ARC bursts open, deploying its payload. 00587_ D-53 Grenadier unfolds itself. 00587_ as-69983 destroyed. 00587_ as-44208 destroyed. 00587_ as-18778 destroyed. 00587_ as-22524 destroyed. 00590_ Assault Rifle destroyed. 00591_ U-05 Engineer lays Concrete. 00593_ U-05 Engineer builds a Wall. 00593_ Aluminum Leg destroyed. 00595_ The unstable cave ceiling collapses. 00597_ U-05 Engineer builds a Wall. 00603_ System corrupted: Matter fused (-9). 00608_ The unstable cave ceiling collapses. 00608_ Aluminum Leg destroyed. 00610_ K-01 Serf collects debris. 00615_ Lgt. Ion Engine destroyed. Map ----- +----------------------------------------------------+ | ???????????????# "" """##??????? | | ???????????????# "#??????? | | ??????????#??### "#??????? | | ?????????????# #??????? | | ?????????????# ##?????? | | ?????????????# [% #??????? | | ??????#??????# !## #??#???? | | ???##????##??# # # # ##??????? | | ?????????????# ########???????? | | ?????????????# #??????????????? | | ?????????????# #??#??###??????? | | ?????????????# ##?### ##?????? | | ????#?#??????# #?## #?????? | | ????????????## ### #?????? | | ??????????### #??????? | | ??????????# #??????? | | ????????### ##??????? | | ? ### #???????? | | ####?????? | | ###????? | | # k ###??? | | ##?? | | d d ##? | | #### #? | | ???## ## #? | | ?? ### #### @ #?? | | # ###??##### #?? | | #$ "%" #????????# #?? | | ## " ### #????????# #?? | | ?# #??# #????????##### ##?? | | ? #???# #?????????????##??? | | #???? ?????????????????? | | ?????"" ?????????????????? | | ??????"" #????????????????? | | ????????" #??#?????????????? | | ? ?????#??? #????????????????? | | ????????????###????????????????? | | ???????????????????????????????? | | ???????????????????????????????? | | ???????????????????????????????? | | ???????????????????????????????? | | ???????????????????????????????? | | ???????????????????????????????? | | ???????????????????????????????? | | ???????????????????????????????? | | ???????????????????????????????? | | ???????????????????????????????? | | ???????????????????????????????? | | ???????????????????????????????? | | ???????????????????????????????? | +----------------------------------------------------+ Best States ------------- Heat Dissipation 25 Energy Generation 10 Energy Capacity 250 Matter Stores 300 Matter Capacity 300 Sight Range 18 Terrain Scan Range 16 Terrain Scan Density 10 Evasion (%) 55 Item Schematics ----------------- None Robot Schematics ------------------ None Fabricated ------------ Nothing Repaired ---------- Nothing Studied --------- None Alien Tech Used ----------------- None Achievements -------------- None Challenges ------------ None Game ------ Seed SmallIonForcegen Manual? 0 Play Time 00:09:49 Cumulative 10.6 hours Start 2026.03.09 @ 10:45:25 End 2026.03.09 @ 11:00:46 Sessions 1 Manual Loads 0 Difficulty Rogue Special Mode None Game No. 19 Rogue 19 Adventurer 0 Explorer 0 Win Type - Total 0 Types 0/0/0/0/0/0/0/0/0/0 Lore% 19 Gallery% 15 Achievement% 13 Wizard Run 0 Options --------- Layout 1 ASCII 0 Keyboard 0 Movement Numpad Keybinds 0 Fullscreen 1 Font 24/Smallcaps Map View 50x35 Zoom Use 0% Tactical HUD 1 Map Filters NONE Filters NONE Steam 1 RUN: 7604dbdd-396b-4b20-aec6-366661f01fb1